fUSD/lending_fUSD_20250209
["ID","MTS","AMOUNT","RATE_DAILY","PERIOD"]
[352381124,1739068284345,-58230.74227018,0.00011233,2]
[352381125,1739068284354,-209.0,0.00011233,2]
[352381126,1739068284364,-205.0,0.00011233,2]
[352381127,1739068284374,-209.0,0.00011233,2]
[352381128,1739068284384,-205.0,0.00011233,2]
[352381129,1739068284393,-209.0,0.00011233,2]
[352381130,1739068284402,-205.0,0.00011233,2]
[352381131,1739068284411,-202.0,0.00011233,2]
[352381132,1739068284420,-202.0,0.00011233,2]
[352381133,1739068284430,-202.0,0.00011233,2]
[352381134,1739068284439,-202.0,0.00011233,2]
[352381135,1739068284449,-202.0,0.00011233,2]
[352381136,1739068284459,-202.0,0.00011233,2]
[352381137,1739068284468,-212.0,0.00011233,2]
[352381138,1739068284477,-212.0,0.00011233,2]
[352381139,1739068284486,-212.0,0.00011233,2]
[352381140,1739068284495,-201.0,0.00011233,2]
[352381141,1739068284505,-201.0,0.00011233,2]
[352381142,1739068284514,-201.0,0.00011233,2]
[352381143,1739068284523,-201.0,0.00011233,2]
[352381144,1739068284534,-201.0,0.00011233,2]
[352381145,1739068284544,-207.0,0.00011233,2]
[352381146,1739068284685,-207.0,0.00011233,2]
[352381147,1739068284696,-206.0,0.00011233,2]
[352381148,1739068284706,-206.0,0.00011233,2]
[352381149,1739068284716,-206.0,0.00011233,2]
[352381150,1739068284725,-207.0,0.00011233,2]
[352381151,1739068284735,-206.0,0.00011233,2]
[352381152,1739068284744,-207.0,0.00011233,2]
[352381153,1739068284753,-207.0,0.00011233,2]
[352381154,1739068284763,-204.99953778,0.00011233,2]
[352381155,1739068284788,-1488.56,0.0001041,2]
[352381156,1739068284798,-3.00046222,0.00011233,2]
[352381157,1739068284807,-205.0,0.00011233,2]
[352381158,1739068284817,-206.0,0.00011233,2]
[352381159,1739068284826,-207.0,0.00011233,2]
[352381160,1739068284836,-205.0,0.00011233,2]
[352381161,1739068284845,-207.0,0.00011233,2]
[352381162,1739068284857,-207.0,0.00011233,2]
[352381163,1739068284867,-207.0,0.00011233,2]
[352381164,1739068284876,-207.0,0.00011233,2]
[352381165,1739068284886,-207.0,0.00011233,2]
[352381166,1739068284896,-201.0,0.00011233,2]
[352381167,1739068284905,-208.0,0.00011233,2]
[352381168,1739068284915,-204.0,0.00011233,2]
[352381169,1739068284924,-205.0,0.00011233,2]
[352381170,1739068284936,-205.0,0.00011233,2]
[352381171,1739068284946,-205.0,0.00011233,2]
[352381172,1739068284956,-207.0,0.00011233,2]
[352381173,1739068284965,-207.0,0.00011233,2]
[352381174,1739068284975,-207.0,0.00011233,2]
[352381175,1739068284985,-150.0,0.00011233,2]
[352381176,1739068284995,-110.43953777,0.00011233,2]
[352381177,1739068285007,-39.56046223,0.00011233,2]
[352381178,1739068285016,-150.0,0.00011233,2]
[352381179,1739068285026,-150.0,0.00011233,2]
[352381180,1739068285035,-1061.52223995,0.00011233,2]
[352381181,1739068285048,-4659.29609709,0.00011233,2]
[352381182,1739068285057,-381.64853795,0.00011233,2]
[352381183,1739068285067,-2750.49722977,0.00011233,2]
[352381184,1739068285077,-39724.05813519,0.00011233,2]
[352381185,1739068285088,-917.47135174,0.00011233,2]
[352381186,1739068285118,-3888.6214421,0.00011233,2]
[352381187,1739068285565,-500.0,9.999e-05,2]
[352381188,1739068285574,-413.8037529,9.999e-05,2]
[352381189,1739068285625,-86.1962471,9.999e-05,2]
[352381190,1739068285634,-230.06375371,0.00010136,2]
[352381191,1739068288207,150.0,8.829e-05,2]
[352381192,1739068289378,150.0,8.652e-05,2]
[352381193,1739068289982,150.0,8.751e-05,2]
[352381194,1739068370348,5714.7643559,0.0002,120]
[352381195,1739068445844,1677.6487,8e-05,2]
[352381196,1739068445875,46389.44,8e-05,2]
[352381197,1739068445905,91932.9113,8e-05,2]
[352381198,1739068515543,150.0,8.183e-05,2]
[352381199,1739068515769,150.0,8.093e-05,2]
[352381200,1739068547715,-1000.0,0.00012,7]
[352381201,1739068569841,53584.20983586,8e-05,3]
[352381202,1739068569868,106415.79016414,8e-05,3]
[352381203,1739068635239,150.0,8.027e-05,2]
[352381204,1739069045800,2161.240607,8.178e-05,2]
[352381209,1739069393991,3016.0,0.0002,120]
[352381214,1739069432246,-289.41476701,8.219e-05,2]
[352381215,1739069432306,-572.21523299,8.219e-05,2]
[352381216,1739069432315,-500.0,8.253e-05,2]
[352381217,1739069432325,-250.0,8.287e-05,2]
[352381218,1739069432333,-500.0,8.308e-05,2]
[352381219,1739069432342,-871.4,8.318e-05,2]
[352381220,1739069432352,-791.96,8.358e-05,2]
[352381221,1739069432362,-204.30107712,8.358e-05,2]
[352381222,1739069432371,-461.19,8.369e-05,2]
[352381223,1739069432380,-300.0,8.601e-05,2]
[352381224,1739069432390,-911.27889989,8.602e-05,2]
[352381225,1739069432401,-22988.72110011,8.602e-05,2]
[352381226,1739069432410,-881.2,8.612e-05,2]
[352381227,1739069432420,-161.42,8.675e-05,2]
[352381228,1739069432430,-1000.0,8.683e-05,2]
[352381229,1739069432439,-239.17347272,8.686e-05,2]
[352381230,1739069432449,-500.0,8.773e-05,2]
[352381231,1739069432458,-347.59,8.802e-05,2]
[352381232,1739069432467,-167.58,8.802e-05,2]
[352381233,1739069432476,-265418.75190409,8.951e-05,2]
[352381234,1739069432485,-203.919148,8.96e-05,2]
[352381235,1739069432494,-14608.81281829,8.961e-05,2]
[352381236,1739069432504,-150.0,8.961e-05,2]
[352381237,1739069432514,-500.0,8.962e-05,2]
[352381238,1739069432523,-500.0,8.962e-05,2]
[352381239,1739069432532,-369.4348111,8.962e-05,2]
[352381240,1739069432541,-502.08260758,8.962e-05,2]
[352381241,1739069432551,-500.0,8.962e-05,2]
[352381242,1739069432561,-500.0,8.962e-05,2]
[352381243,1739069432571,-500.0,8.962e-05,2]
[352381244,1739069432580,-291.56716298,8.962e-05,2]
[352381245,1739069432589,-568.34764221,8.962e-05,2]
[352381246,1739069432598,-500.0,8.962e-05,2]
[352381247,1739069432607,-500.0,8.962e-05,2]
[352381248,1739069432617,-501.74496346,8.962e-05,2]
[352381249,1739069432627,-500.0,8.962e-05,2]
[352381250,1739069432636,-500.0,8.962e-05,2]
[352381251,1739069432646,-500.0,8.962e-05,2]
[352381252,1739069432655,-500.0,8.962e-05,2]
[352381253,1739069432664,-500.0,8.962e-05,2]
[352381254,1739069432674,-1398.56,8.962e-05,2]
[352381255,1739069432683,-500.0,8.962e-05,2]
[352381256,1739069432694,-788.18,8.962e-05,2]
[352381257,1739069432703,-1050.23,8.962e-05,2]
[352381258,1739069432713,-703.79,8.962e-05,2]
[352381259,1739069432722,-995.5,8.962e-05,2]
[352381260,1739069432731,-754.344585,8.962e-05,2]
[352381261,1739069432740,-500.0,8.962e-05,2]
[352381262,1739069432751,-500.0,8.962e-05,2]
[352381263,1739069432760,-500.0,8.962e-05,2]
[352381264,1739069432770,-500.0,8.962e-05,2]
[352381265,1739069432779,-837.418506,8.962e-05,2]
[352381266,1739069432788,-571.5,8.962e-05,2]
[352381267,1739069432797,-1439.98,8.962e-05,2]
[352381268,1739069432806,-500.0,8.962e-05,2]
[352381269,1739069432815,-1335.02,8.962e-05,2]
[352381270,1739069432824,-625.91828467,8.962e-05,2]
[352381271,1739069432834,-559.11,8.962e-05,2]
[352381272,1739069432843,-1093.73,8.962e-05,2]
[352381273,1739069432852,-803.53,8.962e-05,2]
[352381274,1739069432862,-1890.81,8.962e-05,2]
[352381275,1739069432873,-1559.98,8.962e-05,2]
[352381276,1739069432882,-356.25211119,8.962e-05,2]
[352381277,1739069432891,-500.0,8.962e-05,2]
[352381278,1739069432901,-967.4,8.962e-05,2]
[352381279,1739069432910,-1029.95,8.962e-05,2]
[352381280,1739069432919,-920.97,8.962e-05,2]
[352381281,1739069432929,-1867.45,8.962e-05,2]
[352381282,1739069432939,-533.81433131,8.962e-05,2]
[352381283,1739069432949,-789.25,8.962e-05,2]
[352381284,1739069432958,-3744.99,8.962e-05,2]
[352381285,1739069432967,-1560.02,8.962e-05,2]
[352381286,1739069432976,-500.0,8.962e-05,2]
[352381287,1739069432987,-500.0,8.962e-05,2]
[352381288,1739069432997,-736.32,8.962e-05,2]
[352381289,1739069433006,-2494.58,8.962e-05,2]
[352381309,1739069433240,-947.08,8.962e-05,2]
[352381311,1739069433252,-1906.86,8.962e-05,2]
[352381313,1739069433261,-1559.78,8.962e-05,2]
[352381315,1739069433271,-1389.48,8.962e-05,2]
[352381317,1739069433280,-3359.76,8.962e-05,2]
[352381319,1739069433290,-369.50224692,8.962e-05,2]
[352381321,1739069433301,-500.0,8.962e-05,2]
[352381323,1739069433311,-512.92307615,8.962e-05,2]
[352381325,1739069433322,-1064.16,8.962e-05,2]
[352381327,1739069433331,-500.0,8.962e-05,2]
[352381329,1739069433341,-500.0,8.962e-05,2]
[352381331,1739069433351,-630.3,8.962e-05,2]
[352381333,1739069433360,-999.14,8.962e-05,2]
[352381335,1739069433370,-500.0,8.962e-05,2]
[352381337,1739069433379,-500.0,8.962e-05,2]
[352381339,1739069433388,-500.0,8.962e-05,2]
[352381341,1739069433398,-1578.2,8.962e-05,2]
[352381343,1739069433408,-500.0,8.962e-05,2]
[352381345,1739069433417,-490.51125761,8.962e-05,2]
[352381347,1739069433427,-1301.09,8.962e-05,2]
[352381349,1739069433436,-1129.0,8.962e-05,2]
[352381351,1739069433446,-1291.18,8.962e-05,2]
[352381353,1739069433455,-1876.52,8.962e-05,2]
[352381355,1739069433464,-1866.23,8.962e-05,2]
[352381357,1739069433474,-2220.41,8.962e-05,2]
[352381359,1739069433484,-1564.75,8.962e-05,2]
[352381361,1739069433494,-926.11,8.962e-05,2]
[352381363,1739069433503,-1329.14,8.962e-05,2]
[352381365,1739069433513,-500.0,8.962e-05,2]
[352381367,1739069433522,-2507.15,8.962e-05,2]
[352381369,1739069433532,-587.83,8.962e-05,2]
[352381371,1739069433541,-853.77,8.962e-05,2]
[352381373,1739069433550,-1628.99,8.962e-05,2]
[352381375,1739069433559,-170.04776201,8.962e-05,2]
[352381377,1739069433568,-500.0,8.962e-05,2]
[352381379,1739069433578,-500.0,8.962e-05,2]
[352381381,1739069433588,-500.0,8.962e-05,2]
[352381383,1739069433600,-500.0,8.962e-05,2]
[352381385,1739069433609,-500.0,8.962e-05,2]
[352381387,1739069433619,-954.02,8.962e-05,2]
[352381389,1739069433628,-500.0,8.962e-05,2]
[352381391,1739069433638,-938.82,8.962e-05,2]
[352381393,1739069433647,-1573.35,8.962e-05,2]
[352381395,1739069433656,-500.0,8.962e-05,2]
[352381397,1739069433665,-500.0,8.962e-05,2]
[352381399,1739069433675,-1805.8,8.962e-05,2]
[352381401,1739069433684,-774.74,8.962e-05,2]
[352381403,1739069433693,-500.0,8.962e-05,2]
[352381405,1739069433702,-611.09,8.962e-05,2]
[352381407,1739069433711,-500.0,8.962e-05,2]
[352381409,1739069433721,-85622.7584,8.973e-05,2]
[352381411,1739069433731,-5000.0,8.973e-05,2]
[352381413,1739069433740,-500.0,9.041e-05,2]
[352381415,1739069433751,-500.0,9.099e-05,2]
[352381417,1739069433760,-456.53100583,9.099e-05,2]
[352381419,1739069433769,-500.0,9.099e-05,2]
[352381421,1739069433779,-500.0,9.099e-05,2]
[352381423,1739069433787,-500.0,9.099e-05,2]
[352381425,1739069433796,-500.0,9.099e-05,2]
[352381427,1739069433806,-1398.56,9.099e-05,2]
[352381429,1739069433815,-500.0,9.099e-05,2]
[352381431,1739069433824,-788.18,9.099e-05,2]
[352381433,1739069433833,-1050.23,9.099e-05,2]
[352381435,1739069433842,-703.79,9.099e-05,2]
[352381437,1739069433852,-995.5,9.099e-05,2]
[352381438,1739069433861,-754.344585,9.099e-05,2]
[352381439,1739069433871,-558.70262281,9.099e-05,2]
[352381440,1739069433880,-500.0,9.099e-05,2]
[352381442,1739069433889,-837.418506,9.099e-05,2]
[352381444,1739069433898,-571.5,9.099e-05,2]
[352381445,1739069433907,-1439.98,9.099e-05,2]
[352381446,1739069433917,-500.0,9.099e-05,2]
[352381447,1739069433926,-1335.02,9.099e-05,2]
[352381448,1739069433935,-559.11,9.099e-05,2]
[352381449,1739069433943,-1093.73,9.099e-05,2]
[352381450,1739069433953,-803.53,9.099e-05,2]
[352381451,1739069433962,-1890.81,9.099e-05,2]
[352381452,1739069433971,-1559.98,9.099e-05,2]
[352381453,1739069433980,-527.51542988,9.099e-05,2]
[352381454,1739069433990,-967.4,9.099e-05,2]
[352381455,1739069433999,-1029.95,9.099e-05,2]
[352381456,1739069434009,-920.97,9.099e-05,2]
[352381457,1739069434018,-1867.45,9.099e-05,2]
[352381458,1739069434027,-789.25,9.099e-05,2]
[352381459,1739069434036,-3744.99,9.099e-05,2]
[352381460,1739069434045,-1560.02,9.099e-05,2]
[352381461,1739069434055,-500.0,9.099e-05,2]
[352381462,1739069434064,-500.0,9.099e-05,2]
[352381463,1739069434074,-736.32,9.099e-05,2]
[352381464,1739069434083,-2494.58,9.099e-05,2]
[352381465,1739069434092,-947.08,9.099e-05,2]
[352381466,1739069434101,-1906.86,9.099e-05,2]
[352381467,1739069434111,-1559.78,9.099e-05,2]
[352381468,1739069434120,-1389.48,9.099e-05,2]
[352381469,1739069434129,-3359.76,9.099e-05,2]
[352381470,1739069434138,-500.0,9.099e-05,2]
[352381471,1739069434147,-1064.16,9.099e-05,2]
[352381472,1739069434157,-319.52166962,9.099e-05,2]
[352381473,1739069434166,-630.3,9.099e-05,2]
[352381474,1739069434175,-999.14,9.099e-05,2]
[352381475,1739069434184,-473.31291312,9.099e-05,2]
[352381476,1739069434195,-500.0,9.099e-05,2]
[352381477,1739069434204,-500.0,9.099e-05,2]
[352381478,1739069434213,-1578.2,9.099e-05,2]
[352381479,1739069434223,-500.0,9.099e-05,2]
[352381480,1739069434235,-1301.09,9.099e-05,2]
[352381481,1739069434244,-1129.0,9.099e-05,2]
[352381482,1739069434254,-1291.18,9.099e-05,2]
[352381483,1739069434263,-1876.52,9.099e-05,2]
[352381484,1739069434273,-1866.23,9.099e-05,2]
[352381485,1739069434283,-2220.41,9.099e-05,2]
[352381486,1739069434293,-1564.75,9.099e-05,2]
[352381487,1739069434303,-926.11,9.099e-05,2]
[352381488,1739069434314,-1329.14,9.099e-05,2]
[352381489,1739069434325,-523.56852958,9.099e-05,2]
[352381490,1739069434334,-2507.15,9.099e-05,2]
[352381491,1739069434343,-587.83,9.099e-05,2]
[352381492,1739069434353,-853.77,9.099e-05,2]
[352381493,1739069434362,-1628.99,9.099e-05,2]
[352381494,1739069434372,-500.0,9.099e-05,2]
[352381495,1739069434381,-500.0,9.099e-05,2]
[352381496,1739069434390,-500.0,9.099e-05,2]
[352381497,1739069434400,-500.0,9.099e-05,2]
[352381498,1739069434410,-500.0,9.099e-05,2]
[352381499,1739069434420,-954.02,9.099e-05,2]
[352381500,1739069434429,-500.0,9.099e-05,2]
[352381501,1739069434439,-938.82,9.099e-05,2]
[352381502,1739069434448,-1573.35,9.099e-05,2]
[352381503,1739069434457,-500.0,9.099e-05,2]
[352381504,1739069434467,-500.0,9.099e-05,2]
[352381505,1739069434476,-1805.8,9.099e-05,2]
[352381506,1739069434486,-774.74,9.099e-05,2]
[352381507,1739069434496,-633.7459753,9.099e-05,2]
[352381508,1739069434505,-611.09,9.099e-05,2]
[352381509,1739069434514,-500.0,9.099e-05,2]
[352381510,1739069434523,-500.0,9.236e-05,2]
[352381511,1739069434533,-500.0,9.236e-05,2]
[352381512,1739069434543,-532.44747245,9.236e-05,2]
[352381513,1739069434552,-500.0,9.236e-05,2]
[352381514,1739069434561,-500.0,9.236e-05,2]
[352381515,1739069434571,-1398.56,9.236e-05,2]
[352381516,1739069434580,-500.0,9.236e-05,2]
[352381517,1739069434590,-788.18,9.236e-05,2]
[352381518,1739069434600,-1050.23,9.236e-05,2]
[352381519,1739069434609,-703.79,9.236e-05,2]
[352381520,1739069434619,-995.5,9.236e-05,2]
[352381521,1739069434628,-754.344585,9.236e-05,2]
[352381522,1739069434638,-500.0,9.236e-05,2]
[352381523,1739069434647,-837.418506,9.236e-05,2]
[352381524,1739069434657,-571.5,9.236e-05,2]
[352381525,1739069434666,-1439.98,9.236e-05,2]
[352381526,1739069434676,-500.0,9.236e-05,2]
[352381527,1739069434685,-1335.02,9.236e-05,2]
[352381528,1739069434695,-559.11,9.236e-05,2]
[352381529,1739069434705,-1093.73,9.236e-05,2]
[352381530,1739069434715,-803.53,9.236e-05,2]
[352381531,1739069434724,-1890.81,9.236e-05,2]
[352381532,1739069434735,-1559.98,9.236e-05,2]
[352381533,1739069434745,-967.4,9.236e-05,2]
[352381534,1739069434755,-1029.95,9.236e-05,2]
[352381535,1739069434764,-920.97,9.236e-05,2]
[352381536,1739069434773,-1867.45,9.236e-05,2]
[352381537,1739069434782,-789.25,9.236e-05,2]
[352381538,1739069434791,-3744.99,9.236e-05,2]
[352381539,1739069434800,-1560.02,9.236e-05,2]
[352381540,1739069434809,-500.0,9.236e-05,2]
[352381541,1739069434818,-352.68,9.236e-05,2]
[352381542,1739069434829,-736.32,9.236e-05,2]
[352381543,1739069434839,-2494.58,9.236e-05,2]
[352381544,1739069434849,-947.08,9.236e-05,2]
[352381545,1739069434859,-1906.86,9.236e-05,2]
[352381546,1739069434868,-1559.78,9.236e-05,2]
[352381547,1739069434878,-1389.48,9.236e-05,2]
[352381548,1739069434888,-3359.76,9.236e-05,2]
[352381549,1739069434898,-455.39802255,9.236e-05,2]
[352381550,1739069434908,-1064.16,9.236e-05,2]
[352381551,1739069434919,-630.3,9.236e-05,2]
[352381552,1739069434928,-999.14,9.236e-05,2]
[352381553,1739069434937,-500.0,9.236e-05,2]
[352381554,1739069434946,-500.0,9.236e-05,2]
[352381555,1739069434955,-1578.2,9.236e-05,2]
[352381556,1739069434964,-500.0,9.236e-05,2]
[352381557,1739069434973,-1301.09,9.236e-05,2]
[352381558,1739069434983,-1129.0,9.236e-05,2]
[352381559,1739069434992,-1291.18,9.236e-05,2]
[352381560,1739069435003,-1876.52,9.236e-05,2]
[352381561,1739069435012,-1866.23,9.236e-05,2]
[352381562,1739069435022,-2220.41,9.236e-05,2]
[352381563,1739069435033,-1564.75,9.236e-05,2]
[352381564,1739069435043,-926.11,9.236e-05,2]
[352381565,1739069435055,-1329.14,9.236e-05,2]
[352381566,1739069435064,-2507.15,9.236e-05,2]
[352381567,1739069435073,-587.83,9.236e-05,2]
[352381568,1739069435082,-853.77,9.236e-05,2]
[352381569,1739069435091,-1628.99,9.236e-05,2]
[352381570,1739069435100,-500.0,9.236e-05,2]
[352381571,1739069435110,-500.0,9.236e-05,2]
[352381572,1739069435121,-500.0,9.236e-05,2]
[352381573,1739069435130,-500.0,9.236e-05,2]
[352381574,1739069435139,-954.02,9.236e-05,2]
[352381575,1739069435148,-584.27494188,9.236e-05,2]
[352381576,1739069435158,-938.82,9.236e-05,2]
[352381577,1739069435167,-1573.35,9.236e-05,2]
[352381578,1739069435176,-500.0,9.236e-05,2]
[352381579,1739069435186,-1805.8,9.236e-05,2]
[352381580,1739069435195,-774.74,9.236e-05,2]
[352381581,1739069435204,-611.09,9.236e-05,2]
[352381582,1739069435215,-500.0,9.236e-05,2]
[352381583,1739069435225,-500.0,9.373e-05,2]
[352381584,1739069435237,-500.0,9.373e-05,2]
[352381585,1739069435249,-500.0,9.373e-05,2]
[352381586,1739069435258,-364.6978777,9.373e-05,2]
[352381587,1739069435268,-1398.56,9.373e-05,2]
[352381588,1739069435278,-500.0,9.373e-05,2]
[352381589,1739069435287,-788.18,9.373e-05,2]
[352381590,1739069435296,-1050.23,9.373e-05,2]
[352381591,1739069435307,-703.79,9.373e-05,2]
[352381592,1739069435317,-995.5,9.373e-05,2]
[352381593,1739069435327,-754.344585,9.373e-05,2]
[352381594,1739069435336,-500.0,9.373e-05,2]
[352381595,1739069435346,-837.418506,9.373e-05,2]
[352381596,1739069435355,-571.5,9.373e-05,2]
[352381597,1739069435364,-1439.98,9.373e-05,2]
[352381598,1739069435374,-500.0,9.373e-05,2]
[352381599,1739069435383,-1335.02,9.373e-05,2]
[352381600,1739069435392,-559.11,9.373e-05,2]
[352381601,1739069435402,-1093.73,9.373e-05,2]
[352381602,1739069435411,-803.53,9.373e-05,2]
[352381603,1739069435420,-1890.81,9.373e-05,2]
[352381604,1739069435430,-1559.98,9.373e-05,2]
[352381605,1739069435440,-967.4,9.373e-05,2]
[352381606,1739069435450,-1029.95,9.373e-05,2]
[352381607,1739069435459,-920.97,9.373e-05,2]
[352381608,1739069435469,-1867.45,9.373e-05,2]
[352381609,1739069435479,-789.25,9.373e-05,2]
[352381610,1739069435488,-3744.99,9.373e-05,2]
[352381611,1739069435498,-1560.02,9.373e-05,2]
[352381612,1739069435508,-500.0,9.373e-05,2]
[352381613,1739069435517,-736.32,9.373e-05,2]
[352381614,1739069435527,-2494.58,9.373e-05,2]
[352381615,1739069435536,-947.08,9.373e-05,2]
[352381616,1739069435545,-1906.86,9.373e-05,2]
[352381617,1739069435555,-1559.78,9.373e-05,2]
[352381618,1739069435565,-1389.48,9.373e-05,2]
[352381619,1739069435574,-3359.76,9.373e-05,2]
[352381620,1739069435583,-1064.16,9.373e-05,2]
[352381621,1739069435593,-630.3,9.373e-05,2]
[352381622,1739069435603,-999.14,9.373e-05,2]
[352381623,1739069435612,-500.0,9.373e-05,2]
[352381624,1739069435622,-500.0,9.373e-05,2]
[352381625,1739069435632,-1578.2,9.373e-05,2]
[352381626,1739069435641,-500.0,9.373e-05,2]
[352381627,1739069435650,-1301.09,9.373e-05,2]
[352381628,1739069435660,-1129.0,9.373e-05,2]
[352381629,1739069435669,-1291.18,9.373e-05,2]
[352381630,1739069435679,-1876.52,9.373e-05,2]
[352381631,1739069435689,-1866.23,9.373e-05,2]
[352381632,1739069435698,-2220.41,9.373e-05,2]
[352381633,1739069435707,-1564.75,9.373e-05,2]
[352381634,1739069435716,-926.11,9.373e-05,2]
[352381635,1739069435726,-1329.14,9.373e-05,2]
[352381636,1739069435736,-2507.15,9.373e-05,2]
[352381637,1739069435746,-587.83,9.373e-05,2]
[352381638,1739069435756,-853.77,9.373e-05,2]
[352381639,1739069435765,-1628.99,9.373e-05,2]
[352381640,1739069435774,-500.0,9.373e-05,2]
[352381641,1739069435784,-500.0,9.373e-05,2]
[352381642,1739069435793,-500.0,9.373e-05,2]
[352381643,1739069435803,-500.0,9.373e-05,2]
[352381644,1739069435813,-954.02,9.373e-05,2]
[352381645,1739069435821,-938.82,9.373e-05,2]
[352381646,1739069435830,-1573.35,9.373e-05,2]
[352381647,1739069435840,-500.0,9.373e-05,2]
[352381648,1739069435849,-1805.8,9.373e-05,2]
[352381649,1739069435859,-774.74,9.373e-05,2]
[352381650,1739069435867,-611.09,9.373e-05,2]
[352381651,1739069435876,-500.0,9.373e-05,2]
[352381652,1739069435885,-791.96,9.402e-05,2]
[352381653,1739069435895,-420.0,9.462e-05,2]
[352381654,1739069435905,-306.53741179,9.51e-05,2]
[352381655,1739069435914,-500.0,9.51e-05,2]
[352381656,1739069435923,-500.0,9.51e-05,2]
[352381657,1739069435932,-1398.56,9.51e-05,2]
[352381658,1739069435941,-472.64623031,9.51e-05,2]
[352381659,1739069435950,-788.18,9.51e-05,2]
[352381660,1739069435959,-1050.23,9.51e-05,2]
[352381661,1739069435968,-703.79,9.51e-05,2]
[352381662,1739069435978,-995.5,9.51e-05,2]
[352381663,1739069435987,-754.344585,9.51e-05,2]
[352381664,1739069435997,-500.0,9.51e-05,2]
[352381665,1739069436007,-837.418506,9.51e-05,2]
[352381666,1739069436015,-571.5,9.51e-05,2]
[352381667,1739069436025,-1439.98,9.51e-05,2]
[352381668,1739069436035,-500.0,9.51e-05,2]
[352381669,1739069436045,-1335.02,9.51e-05,2]
[352381670,1739069436055,-559.11,9.51e-05,2]
[352381671,1739069436065,-1093.73,9.51e-05,2]
[352381672,1739069436075,-803.53,9.51e-05,2]
[352381673,1739069436083,-515.36008851,9.51e-05,2]
[352381674,1739069436371,-1375.44991149,9.51e-05,2]
[352381675,1739069436380,-674.69898104,9.51e-05,2]
[352381676,1739069436405,-885.28101896,9.51e-05,2]
[352381677,1739069436415,-961.79203854,9.51e-05,2]
[352381678,1739069436426,-5.60796146,9.51e-05,2]
[352381679,1739069436435,-244.39203854,9.51e-05,2]
[352381680,1739069436446,-785.55796146,9.51e-05,2]
[352381681,1739069436456,-14.44200854,9.51e-05,2]
[352381682,1739069436467,-906.52799146,9.51e-05,2]
[352381683,1739069436476,-654.91202354,9.51e-05,2]
[352381684,1739069436509,-1078.07799764,9.51e-05,2]
[352381685,1739069436596,-134.45997882,9.51e-05,2]
[352381686,1739069436605,-173.67347549,9.51e-05,2]
[352381687,1739069436617,-529.25076049,9.51e-05,2]
[352381688,1739069436628,-86.32576402,9.51e-05,2]
[352381689,1739069436637,-656.14835053,9.51e-05,2]
[352381690,1739069436648,-260.61219273,9.51e-05,2]
[352381691,1739069436660,-2828.22945674,9.51e-05,2]
[352381692,1739069436669,-1560.02,9.51e-05,2]
[352381693,1739069436679,-500.0,9.51e-05,2]
[352381694,1739069436696,-736.32,9.51e-05,2]
[352381695,1739069436706,-2383.26054326,9.51e-05,2]
[352381696,1739069436772,-111.31945674,9.51e-05,2]
[352381697,1739069436782,-947.08,9.51e-05,2]
[352381698,1739069436792,-1906.86,9.51e-05,2]
[352381699,1739069436801,-1559.78,9.51e-05,2]
[352381700,1739069436810,-1389.48,9.51e-05,2]
[352381701,1739069436820,-3359.76,9.51e-05,2]
[352381702,1739069436829,-1064.16,9.51e-05,2]
[352381703,1739069436839,-630.3,9.51e-05,2]
[352381704,1739069436848,-999.14,9.51e-05,2]
[352381705,1739069436857,-500.0,9.51e-05,2]
[352381706,1739069436867,-1578.2,9.51e-05,2]
[352381707,1739069436877,-500.0,9.51e-05,2]
[352381708,1739069437084,-500.0,9.51e-05,2]
[352381709,1739069437093,-1301.09,9.51e-05,2]
[352381710,1739069437103,-1129.0,9.51e-05,2]
[352381711,1739069437113,-1291.18,9.51e-05,2]
[352381712,1739069437123,-1876.52,9.51e-05,2]
[352381713,1739069437132,-1866.23,9.51e-05,2]
[352381714,1739069437142,-2220.41,9.51e-05,2]
[352381715,1739069437151,-1564.75,9.51e-05,2]
[352381716,1739069437160,-926.11,9.51e-05,2]